[Event "*** Titled Tuesday 3|2 Blitz"]
[Site "Chess.com"]
[Date "2015.10.06"]
[Round "1"]
[White "190l"]
[Black "Boryboy"]
[Result "0-1"]
[WhiteElo "2002"]
[BlackElo "2449"]
[TimeControl "180+2"]
[EndTime "17:03:56 PDT"]
[Termination "Boryboy won by checkmate"]

1. c4 {[%clk 0:03:00.4]} 1... e6 {[%clk 0:03:00.8]} 2. Nc3 {[%clk 0:03:01]} 2...
d5 {[%clk 0:03:02.5]} 3. e3 {[%clk 0:03:01.6]} 3... Nf6 {[%clk 0:03:03.4]} 4.
Nf3 {[%clk 0:03:01.4]} 4... Bd6 {[%clk 0:03:01.1]} 5. Be2 {[%clk 0:03:02]} 5...
c6 {[%clk 0:03:00.8]} 6. O-O {[%clk 0:03:02.8]} 6... Qe7 {[%clk 0:03:01.5]} 7.
b3 {[%clk 0:03:04.1]} 7... Nbd7 {[%clk 0:03:02.4]} 8. Bb2 {[%clk 0:03:05.7]}
8... O-O {[%clk 0:03:03.8]} 9. h3 {[%clk 0:03:05.7]} 9... e5 {[%clk 0:03:04.2]}
10. d3 {[%clk 0:03:05.6]} 10... Re8 {[%clk 0:03:05.4]} 11. Rc1 {[%clk
0:03:02.5]} 11... a6 {[%clk 0:03:06.7]} 12. d4 {[%clk 0:03:01.5]} 12... e4
{[%clk 0:03:06.1]} 13. Nd2 {[%clk 0:03:02.9]} 13... Nf8 {[%clk 0:03:07.4]} 14.
cxd5 {[%clk 0:03:02.9]} 14... cxd5 {[%clk 0:03:08.4]} 15. Rc2 {[%clk 0:03:03.2]}
15... Bd7 {[%clk 0:03:08.2]} 16. Qc1 {[%clk 0:03:03.9]} 16... Ng6 {[%clk
0:03:05.9]} 17. Ncb1 {[%clk 0:03:02.6]} 17... Nh4 {[%clk 0:03:06.7]} 18. Ba3
{[%clk 0:03:00.9]} 18... Bxh3 {[%clk 0:02:53.3]} 19. gxh3 {[%clk 0:02:47.6]}
19... Qd7 {[%clk 0:02:52.8]} 20. Bg4 {[%clk 0:02:29]} 20... Nxg4 {[%clk
0:02:46.1]} 21. Bxd6 {[%clk 0:02:29.6]} 21... Qxd6 {[%clk 0:02:32.6]} 22. hxg4
{[%clk 0:02:29.8]} 22... Qg6 {[%clk 0:02:25.9]} 23. Kh2 {[%clk 0:02:16.8]} 23...
Qxg4 {[%clk 0:02:25.8]} 24. Rg1 {[%clk 0:02:18]} 24... Qh5 {[%clk 0:02:26.9]}
25. f4 {[%clk 0:02:01.9]} 25... exf3 {[%clk 0:02:14.3]} 26. Nf1 {[%clk
0:01:52.1]} 26... Nf5# {[%clk 0:02:13.5]} 0-1

[Event "*** Titled Tuesday 3|2 Blitz"]
[Site "Chess.com"]
[Date "2015.10.06"]
[Round "1"]
[White "zmaj23"]
[Black "komaromy31"]
[Result "1-0"]
[WhiteElo "2313"]
[BlackElo "1896"]
[TimeControl "180+2"]
[EndTime "17:04:15 PDT"]
[Termination "zmaj23 won by resignation"]

1. e4 {[%clk 0:03:01.4]} 1... e6 {[%clk 0:02:56.8]} 2. d4 {[%clk 0:03:02]} 2...
d5 {[%clk 0:02:58.2]} 3. Nc3 {[%clk 0:03:02.4]} 3... Nf6 {[%clk 0:02:59.1]} 4.
Bg5 {[%clk 0:03:02.8]} 4... Be7 {[%clk 0:02:59.8]} 5. e5 {[%clk 0:03:03.5]} 5...
Nfd7 {[%clk 0:03:00.3]} 6. Bxe7 {[%clk 0:03:04.2]} 6... Qxe7 {[%clk 0:03:02.2]}
7. f4 {[%clk 0:03:05.1]} 7... O-O {[%clk 0:03:02.8]} 8. Nf3 {[%clk 0:03:05.2]}
8... c5 {[%clk 0:03:04.1]} 9. dxc5 {[%clk 0:03:02.5]} 9... Nc6 {[%clk
0:03:02.6]} 10. Bd3 {[%clk 0:03:03.2]} 10... f6 {[%clk 0:02:58.3]} 11. Qe2
{[%clk 0:03:00]} 11... fxe5 {[%clk 0:02:53.8]} 12. fxe5 {[%clk 0:03:01.9]} 12...
Qxc5 {[%clk 0:02:50.7]} 13. Ng5 {[%clk 0:02:54.8]} 13... Ndxe5 {[%clk
0:01:26.1]} 14. Bxh7+ {[%clk 0:02:52.6]} 14... Kh8 {[%clk 0:01:27.1]} 15. Qh5
{[%clk 0:02:41.5]} 1-0

[Event "*** Titled Tuesday 3|2 Blitz"]
[Site "Chess.com"]
[Date "2015.10.06"]
[Round "1"]
[White "spirals5"]
[Black "Noukii"]
[Result "0-1"]
[WhiteElo "2124"]
[BlackElo "2547"]
[TimeControl "180+2"]
[EndTime "17:04:17 PDT"]
[Termination "Noukii won by resignation"]

1. e4 {[%clk 0:02:59.4]} 1... Nf6 {[%clk 0:02:59.9]} 2. e5 {[%clk 0:03:00.2]}
2... Nd5 {[%clk 0:03:00]} 3. d4 {[%clk 0:03:01.2]} 3... d6 {[%clk 0:03:01.5]} 4.
Bc4 {[%clk 0:03:01.5]} 4... Nb6 {[%clk 0:03:02.8]} 5. Bb3 {[%clk 0:03:02.2]}
5... Bf5 {[%clk 0:03:04.4]} 6. exd6 {[%clk 0:03:03]} 6... cxd6 {[%clk
0:03:04.1]} 7. Nf3 {[%clk 0:03:04.1]} 7... e6 {[%clk 0:03:05]} 8. O-O {[%clk
0:03:05]} 8... Be7 {[%clk 0:03:06.7]} 9. c4 {[%clk 0:03:06.1]} 9... O-O {[%clk
0:03:08.1]} 10. Nc3 {[%clk 0:03:07.1]} 10... Nc6 {[%clk 0:03:08.7]} 11. h3
{[%clk 0:03:07.3]} 11... Na5 {[%clk 0:03:07.6]} 12. Qe2 {[%clk 0:03:01.9]} 12...
Rc8 {[%clk 0:03:08.1]} 13. d5 {[%clk 0:02:58.6]} 13... Nbxc4 {[%clk 0:02:35.4]}
14. Bxc4 {[%clk 0:02:56.2]} 14... Nxc4 {[%clk 0:02:35.2]} 15. dxe6 {[%clk
0:02:57]} 15... Bxe6 {[%clk 0:02:36]} 16. Re1 {[%clk 0:02:57.6]} 16... Re8
{[%clk 0:02:35.5]} 17. Nd4 {[%clk 0:02:53.3]} 17... Bf6 {[%clk 0:02:36.1]} 18.
Nxe6 {[%clk 0:02:53.5]} 18... Rxe6 {[%clk 0:02:37]} 19. Qd1 {[%clk 0:02:54]}
19... Bxc3 {[%clk 0:02:34.3]} 20. bxc3 {[%clk 0:02:54.6]} 20... Rxe1+ {[%clk
0:02:35.1]} 21. Qxe1 {[%clk 0:02:55.2]} 21... Qd7 {[%clk 0:02:36.6]} 22. Bf4
{[%clk 0:02:52.1]} 22... Re8 {[%clk 0:02:30.4]} 23. Qf1 {[%clk 0:02:48.9]} 23...
d5 {[%clk 0:02:28.1]} 24. Rd1 {[%clk 0:02:48.8]} 24... Qf5 {[%clk 0:02:20.6]}
25. Bg3 {[%clk 0:02:46.5]} 25... h6 {[%clk 0:02:20.1]} 26. Kh2 {[%clk
0:02:44.5]} 26... b6 {[%clk 0:02:18.8]} 27. Re1 {[%clk 0:02:43.1]} 27... Re6
{[%clk 0:02:17.7]} 28. Rxe6 {[%clk 0:02:43.4]} 28... fxe6 {[%clk 0:02:18.7]} 29.
Qd1 {[%clk 0:02:40.4]} 29... Kh7 {[%clk 0:02:12.4]} 30. Qa4 {[%clk 0:02:40]}
30... Qf7 {[%clk 0:02:10.8]} 31. Qc6 {[%clk 0:02:39.9]} 31... e5 {[%clk
0:02:10.5]} 32. a4 {[%clk 0:02:37.2]} 32... e4 {[%clk 0:02:11.5]} 33. Qc8 {[%clk
0:02:32.7]} 33... e3 {[%clk 0:02:08.3]} 34. fxe3 {[%clk 0:02:33]} 34... Nxe3
{[%clk 0:02:10]} 35. Be5 {[%clk 0:02:21.5]} 35... Qf2 {[%clk 0:02:06.7]} 0-1

[Event "*** Titled Tuesday 3|2 Blitz"]
[Site "Chess.com"]
[Date "2015.10.06"]
[Round "1"]
[White "Dlugy"]
[Black "JustKid"]
[Result "1-0"]
[WhiteElo "2549"]
[BlackElo "2130"]
[TimeControl "180+2"]
[EndTime "17:06:51 PDT"]
[Termination "Dlugy won by resignation"]

1. d4 {[%clk 0:03:01.8]} 1... d5 {[%clk 0:02:58.1]} 2. Bf4 {[%clk 0:03:02]} 2...
c5 {[%clk 0:02:57.1]} 3. e4 {[%clk 0:03:03.1]} 3... dxe4 {[%clk 0:02:52.6]} 4.
d5 {[%clk 0:03:04.3]} 4... Nf6 {[%clk 0:02:51.8]} 5. Nc3 {[%clk 0:03:05.7]} 5...
a6 {[%clk 0:02:49.2]} 6. Qe2 {[%clk 0:03:03.3]} 6... e6 {[%clk 0:02:44.7]} 7.
O-O-O {[%clk 0:02:44.9]} 7... Qa5 {[%clk 0:02:30.4]} 8. Kb1 {[%clk 0:02:03.2]}
8... exd5 {[%clk 0:02:02.1]} 9. Bg5 {[%clk 0:02:03.7]} 9... Be6 {[%clk
0:01:35.6]} 10. Bxf6 {[%clk 0:02:02.8]} 10... gxf6 {[%clk 0:01:37.2]} 11. Nxd5
{[%clk 0:02:03.6]} 11... Bg7 {[%clk 0:01:31.4]} 12. Qxe4 {[%clk 0:02:04.5]}
12... O-O {[%clk 0:01:25.7]} 13. Bc4 {[%clk 0:01:52.5]} 13... Kh8 {[%clk
0:01:11.1]} 14. Ne3 {[%clk 0:01:44.4]} 14... f5 {[%clk 0:00:57.9]} 15. Nxf5
{[%clk 0:01:39.3]} 15... Bxf5 {[%clk 0:00:57.2]} 16. Qxf5 {[%clk 0:01:39.5]}
16... Qb6 {[%clk 0:00:52.9]} 17. b3 {[%clk 0:01:33.7]} 17... Qf6 {[%clk
0:00:41]} 18. Qxf6 {[%clk 0:01:33.7]} 18... Bxf6 {[%clk 0:00:42.9]} 19. Bd5
{[%clk 0:01:33]} 19... Ra7 {[%clk 0:00:42.6]} 20. Ne2 {[%clk 0:01:32.5]} 20...
b5 {[%clk 0:00:42.8]} 21. Ng3 {[%clk 0:01:33.1]} 21... Bd4 {[%clk 0:00:34]} 22.
Nf5 {[%clk 0:01:32.3]} 22... Bxf2 {[%clk 0:00:29.4]} 23. Rhf1 {[%clk 0:01:33.2]}
23... Bd4 {[%clk 0:00:31]} 24. Nxd4 {[%clk 0:01:34.3]} 24... cxd4 {[%clk
0:00:32.9]} 25. Rxd4 {[%clk 0:01:35.2]} 25... Rd7 {[%clk 0:00:31]} 26. Rd3
{[%clk 0:01:36.3]} 26... f5 {[%clk 0:00:26.4]} 27. g3 {[%clk 0:01:35.5]} 27...
Kg7 {[%clk 0:00:27.3]} 28. Kb2 {[%clk 0:01:27.7]} 28... Rd6 {[%clk 0:00:28.6]}
29. c4 {[%clk 0:01:28.1]} 29... bxc4 {[%clk 0:00:29.6]} 30. Bxc4 {[%clk
0:01:29.4]} 30... Rxd3 {[%clk 0:00:27.9]} 31. Bxd3 {[%clk 0:01:30.5]} 31... Rd8
{[%clk 0:00:28.2]} 32. Kc3 {[%clk 0:01:27.4]} 32... Rc8+ {[%clk 0:00:29.5]} 33.
Kd2 {[%clk 0:01:28.4]} 33... Nc6 {[%clk 0:00:28.2]} 34. Rxf5 {[%clk 0:01:23.7]}
34... Nb4 {[%clk 0:00:29.5]} 35. a3 {[%clk 0:01:25]} 35... Nc6 {[%clk
0:00:28.1]} 36. Rc5 {[%clk 0:01:24.9]} 1-0

[Event "*** Titled Tuesday 3|2 Blitz"]
[Site "Chess.com"]
[Date "2015.10.06"]
[Round "1"]
[White "gmjlh"]
[Black "Viaje"]
[Result "1-0"]
[WhiteElo "2628"]
[BlackElo "2178"]
[TimeControl "180+2"]
[EndTime "17:07:03 PDT"]
[Termination "gmjlh won by resignation"]

1. e4 {[%clk 0:03:00.4]} 1... c5 {[%clk 0:03:00.3]} 2. Nf3 {[%clk 0:03:01.4]}
2... d6 {[%clk 0:03:01.9]} 3. Bb5+ {[%clk 0:03:02.4]} 3... Bd7 {[%clk
0:03:02.5]} 4. Bxd7+ {[%clk 0:03:03.4]} 4... Qxd7 {[%clk 0:03:04.4]} 5. O-O
{[%clk 0:03:04.7]} 5... Nf6 {[%clk 0:03:04.2]} 6. d4 {[%clk 0:03:05.7]} 6...
cxd4 {[%clk 0:03:02.3]} 7. Qxd4 {[%clk 0:03:07.6]} 7... Nc6 {[%clk 0:03:02.8]}
8. Qd3 {[%clk 0:03:09]} 8... g6 {[%clk 0:02:59.8]} 9. c4 {[%clk 0:03:09.6]} 9...
Bg7 {[%clk 0:03:00.5]} 10. Nc3 {[%clk 0:03:10.2]} 10... O-O {[%clk 0:03:00.2]}
11. h3 {[%clk 0:03:11.3]} 11... Rac8 {[%clk 0:02:54.1]} 12. Be3 {[%clk
0:03:10.1]} 12... a6 {[%clk 0:02:45.7]} 13. b3 {[%clk 0:03:08.6]} 13... Nb4
{[%clk 0:02:09.2]} 14. Qd2 {[%clk 0:03:09.1]} 14... b5 {[%clk 0:01:51.4]} 15.
Rad1 {[%clk 0:03:08.8]} 15... bxc4 {[%clk 0:01:51.4]} 16. Na4 {[%clk 0:02:50.1]}
16... c3 {[%clk 0:01:34.5]} 17. Nxc3 {[%clk 0:02:50.6]} 17... Qb7 {[%clk
0:01:33]} 18. a3 {[%clk 0:02:12.7]} 18... Nc6 {[%clk 0:01:32.5]} 19. b4 {[%clk
0:02:13.6]} 19... Nd7 {[%clk 0:01:19.8]} 20. Nd5 {[%clk 0:02:10.2]} 20... Nde5
{[%clk 0:01:00.8]} 21. Nxe5 {[%clk 0:02:09.2]} 21... Nxe5 {[%clk 0:01:02.7]} 22.
Bg5 {[%clk 0:02:06.5]} 22... Rfe8 {[%clk 0:01:00.6]} 23. Nxe7+ {[%clk
0:01:52.7]} 23... Rxe7 {[%clk 0:01:00]} 24. Bxe7 {[%clk 0:01:54.6]} 24... Qxe7
{[%clk 0:01:00.9]} 25. Qxd6 {[%clk 0:01:55.8]} 25... Qxd6 {[%clk 0:00:52.1]} 26.
Rxd6 {[%clk 0:01:55.8]} 26... Rc3 {[%clk 0:00:33.6]} 27. Rxa6 {[%clk 0:01:50.3]}
27... Nc4 {[%clk 0:00:33.5]} 28. Ra8+ {[%clk 0:01:42.5]} 28... Bf8 {[%clk
0:00:33.9]} 29. Rc8 {[%clk 0:01:43.4]} 29... Rc2 {[%clk 0:00:31.9]} 30. b5
{[%clk 0:01:31.1]} 30... Nxa3 {[%clk 0:00:17.8]} 31. Rxc2 {[%clk 0:01:31.5]}
31... Nxc2 {[%clk 0:00:19.7]} 32. b6 {[%clk 0:01:32.8]} 32... Bd6 {[%clk
0:00:19]} 33. Rd1 {[%clk 0:01:25.9]} 33... Be5 {[%clk 0:00:16.7]} 34. Rd5 {[%clk
0:01:26.6]} 34... Bf4 {[%clk 0:00:15.6]} 35. g3 {[%clk 0:01:26.9]} 1-0

[Event "*** Titled Tuesday 3|2 Blitz"]
[Site "Chess.com"]
[Date "2015.10.06"]
[Round "1"]
[White "josiwales"]
[Black "jcibarra"]
[Result "0-1"]
[WhiteElo "2072"]
[BlackElo "2493"]
[TimeControl "180+2"]
[EndTime "17:07:21 PDT"]
[Termination "jcibarra won by resignation"]

1. e4 {[%clk 0:02:56.6]} 1... c5 {[%clk 0:03:00.3]} 2. Nc3 {[%clk 0:02:57.3]}
2... a6 {[%clk 0:03:00.9]} 3. g3 {[%clk 0:02:59]} 3... b5 {[%clk 0:03:02]} 4.
Bg2 {[%clk 0:03:00.2]} 4... Bb7 {[%clk 0:03:03.5]} 5. d3 {[%clk 0:03:01.2]} 5...
e6 {[%clk 0:03:04.9]} 6. f4 {[%clk 0:03:02.3]} 6... d5 {[%clk 0:03:06]} 7. Nge2
{[%clk 0:03:01.4]} 7... b4 {[%clk 0:02:59.3]} 8. Nb1 {[%clk 0:03:01.6]} 8...
dxe4 {[%clk 0:02:59.3]} 9. dxe4 {[%clk 0:03:02]} 9... Qxd1+ {[%clk 0:02:59.8]}
10. Kxd1 {[%clk 0:03:03.9]} 10... Nf6 {[%clk 0:03:00.9]} 11. Nd2 {[%clk
0:03:01.4]} 11... Ng4 {[%clk 0:03:01.9]} 12. Ke1 {[%clk 0:03:01.5]} 12... Ne3
{[%clk 0:03:02.3]} 13. Kf2 {[%clk 0:03:02]} 13... Nxc2 {[%clk 0:03:01]} 14. Rb1
{[%clk 0:03:03.5]} 14... Nd7 {[%clk 0:02:56.9]} 15. Nc4 {[%clk 0:03:01.9]} 15...
Nf6 {[%clk 0:02:53.8]} 16. e5 {[%clk 0:02:18.1]} 16... Ng4+ {[%clk 0:02:49.9]}
17. Kg1 {[%clk 0:02:16.4]} 17... O-O-O {[%clk 0:02:24.7]} 18. Bd2 {[%clk
0:02:10.8]} 18... Nd4 {[%clk 0:02:14.9]} 19. Nxd4 {[%clk 0:02:01.5]} 19... cxd4
{[%clk 0:02:07.4]} 20. Rc1 {[%clk 0:02:01.1]} 20... Kb8 {[%clk 0:01:49.2]} 21.
h3 {[%clk 0:02:02]} 21... Nh6 {[%clk 0:01:45.1]} 22. Na5 {[%clk 0:02:01.8]}
22... Bxg2 {[%clk 0:01:39.6]} 23. Kxg2 {[%clk 0:02:01.6]} 23... Rd5 {[%clk
0:01:41.1]} 24. Nc6+ {[%clk 0:02:00.7]} 24... Kb7 {[%clk 0:01:42.3]} 25. Nxb4
{[%clk 0:01:54]} 25... Bxb4 {[%clk 0:01:28.6]} 26. Bxb4 {[%clk 0:01:55.9]} 26...
Nf5 {[%clk 0:01:29.6]} 27. Kf3 {[%clk 0:01:55.3]} 27... d3 {[%clk 0:01:26.8]}
28. g4 {[%clk 0:01:46.1]} 28... Nd4+ {[%clk 0:01:27.6]} 29. Ke4 {[%clk
0:01:45.9]} 29... Ne2 {[%clk 0:01:22.4]} 30. Rhd1 {[%clk 0:01:17]} 30... Rd4+
{[%clk 0:01:16.4]} 31. Ke3 {[%clk 0:01:10.7]} 31... Rxb4 {[%clk 0:01:17.2]} 32.
Rc5 {[%clk 0:01:06.2]} 32... Rd8 {[%clk 0:01:10.4]} 33. f5 {[%clk 0:01:01.2]}
33... Rxb2 {[%clk 0:01:01.8]} 34. fxe6 {[%clk 0:00:56]} 34... fxe6 {[%clk
0:01:02.3]} 35. Rf1 {[%clk 0:00:52.7]} 35... d2 {[%clk 0:01:00.1]} 0-1

[Event "*** Titled Tuesday 3|2 Blitz"]
[Site "Chess.com"]
[Date "2015.10.06"]
[Round "1"]
[White "KyronGriffith"]
[Black "LyonBeast"]
[Result "0-1"]
[WhiteElo "2223"]
[BlackElo "2700"]
[TimeControl "180+2"]
[EndTime "17:07:25 PDT"]
[Termination "LyonBeast won by checkmate"]

1. e4 {[%clk 0:02:58.9]} 1... e6 {[%clk 0:03:00]} 2. d4 {[%clk 0:02:59.6]} 2...
d5 {[%clk 0:03:01.2]} 3. Nd2 {[%clk 0:03:01.3]} 3... Nf6 {[%clk 0:02:59.8]} 4.
e5 {[%clk 0:03:01.9]} 4... Nfd7 {[%clk 0:03:01]} 5. Bd3 {[%clk 0:03:02.5]} 5...
c5 {[%clk 0:03:02.2]} 6. c3 {[%clk 0:03:03.9]} 6... Nc6 {[%clk 0:03:03.8]} 7.
Ngf3 {[%clk 0:03:05.2]} 7... Be7 {[%clk 0:03:00.9]} 8. O-O {[%clk 0:03:04.5]}
8... g5 {[%clk 0:03:02]} 9. a3 {[%clk 0:03:03.8]} 9... g4 {[%clk 0:03:01.1]} 10.
Ne1 {[%clk 0:03:04.6]} 10... h5 {[%clk 0:02:58.6]} 11. dxc5 {[%clk 0:02:50.7]}
11... Bxc5 {[%clk 0:02:55.9]} 12. b4 {[%clk 0:02:46.4]} 12... Bb6 {[%clk
0:02:56.9]} 13. Qe2 {[%clk 0:02:28.9]} 13... Ndxe5 {[%clk 0:02:56.7]} 14. Bb5
{[%clk 0:02:29.3]} 14... Bd7 {[%clk 0:02:55.6]} 15. Bb2 {[%clk 0:02:22.7]} 15...
Qg5 {[%clk 0:02:48.2]} 16. c4 {[%clk 0:02:19.2]} 16... Nd4 {[%clk 0:02:46.3]}
17. Bxd7+ {[%clk 0:02:12.4]} 17... Nxd7 {[%clk 0:02:46.6]} 18. Bxd4 {[%clk
0:01:58.3]} 18... Bxd4 {[%clk 0:02:48.5]} 19. Rd1 {[%clk 0:01:59.6]} 19... O-O
{[%clk 0:02:37.2]} 20. Ndf3 {[%clk 0:01:45.7]} 20... gxf3 {[%clk 0:02:37.6]} 21.
Nxf3 {[%clk 0:01:46.7]} 21... Qg7 {[%clk 0:02:29.2]} 22. Rxd4 {[%clk 0:01:43.1]}
22... Nf6 {[%clk 0:02:29.4]} 23. c5 {[%clk 0:01:32.4]} 23... Rfe8 {[%clk
0:02:27.7]} 24. Qe5 {[%clk 0:01:29.9]} 24... a5 {[%clk 0:02:21]} 25. b5 {[%clk
0:01:26.3]} 25... Rac8 {[%clk 0:02:21.2]} 26. Rc1 {[%clk 0:01:24]} 26... Qh6
{[%clk 0:02:16.9]} 27. Rdd1 {[%clk 0:00:59.1]} 27... Nd7 {[%clk 0:02:06.1]} 28.
Qd6 {[%clk 0:00:56.5]} 28... Red8 {[%clk 0:02:07.4]} 29. c6 {[%clk 0:00:56.6]}
29... bxc6 {[%clk 0:02:08.4]} 30. bxc6 {[%clk 0:00:57.9]} 30... Nf6 {[%clk
0:02:01.3]} 31. Qc5 {[%clk 0:00:55.4]} 31... Qf4 {[%clk 0:01:52.7]} 32. Qxa5
{[%clk 0:00:51.2]} 32... Ra8 {[%clk 0:01:52.3]} 33. Qb4 {[%clk 0:00:51.3]} 33...
Ne4 {[%clk 0:01:48.3]} 34. Rc2 {[%clk 0:00:37.7]} 34... Rdb8 {[%clk 0:01:45.4]}
35. Qe7 {[%clk 0:00:30.4]} 35... Re8 {[%clk 0:01:46.2]} 36. Qb4 {[%clk
0:00:31.1]} 36... Kh7 {[%clk 0:01:43.8]} 37. c7 {[%clk 0:00:31.9]} 37... Rg8
{[%clk 0:01:44.7]} 38. Kf1 {[%clk 0:00:21.5]} 38... Rxg2 {[%clk 0:01:39.6]} 39.
Kxg2 {[%clk 0:00:22.1]} 39... Rg8+ {[%clk 0:01:40.5]} 40. Kf1 {[%clk 0:00:19.3]}
40... Qxf3 {[%clk 0:01:40.7]} 41. Rdc1 {[%clk 0:00:10.7]} 41... Qd3+ {[%clk
0:01:37.1]} 42. Ke1 {[%clk 0:00:11.3]} 42... Rg1# {[%clk 0:01:36.9]} 0-1

[Event "*** Titled Tuesday 3|2 Blitz"]
[Site "Chess.com"]
[Date "2015.10.06"]
[Round "1"]
[White "ItalianMachine"]
[Black "lorcho"]
[Result "0-1"]
[WhiteElo "2203"]
[BlackElo "2636"]
[TimeControl "180+2"]
[EndTime "17:08:00 PDT"]
[Termination "lorcho won by checkmate"]

1. e4 {[%clk 0:02:57.3]} 1... c6 {[%clk 0:02:50.1]} 2. d4 {[%clk 0:02:57.8]}
2... g6 {[%clk 0:02:50.3]} 3. Nd2 {[%clk 0:02:59.7]} 3... d5 {[%clk 0:02:42.3]}
4. c3 {[%clk 0:02:58]} 4... dxe4 {[%clk 0:02:38.6]} 5. Nxe4 {[%clk 0:02:58.4]}
5... Bg7 {[%clk 0:02:39.7]} 6. Nf3 {[%clk 0:02:59.5]} 6... Nf6 {[%clk
0:02:40.1]} 7. Bd3 {[%clk 0:03:00.3]} 7... O-O {[%clk 0:02:40.5]} 8. O-O {[%clk
0:03:01.5]} 8... Nxe4 {[%clk 0:02:41.3]} 9. Bxe4 {[%clk 0:03:02.6]} 9... Bg4
{[%clk 0:02:42.9]} 10. h3 {[%clk 0:03:03.1]} 10... Bxf3 {[%clk 0:02:43.7]} 11.
Qxf3 {[%clk 0:02:59.2]} 11... e6 {[%clk 0:02:45.2]} 12. Rd1 {[%clk 0:02:54.5]}
12... Nd7 {[%clk 0:02:46.5]} 13. Be3 {[%clk 0:02:34.5]} 13... a5 {[%clk
0:02:47.3]} 14. a4 {[%clk 0:02:32.3]} 14... Qe7 {[%clk 0:02:46.9]} 15. Bc2
{[%clk 0:01:43.6]} 15... Nb6 {[%clk 0:02:45.3]} 16. b3 {[%clk 0:01:43.7]} 16...
Nd5 {[%clk 0:02:45.9]} 17. Bc1 {[%clk 0:01:42.2]} 17... c5 {[%clk 0:02:41.2]}
18. Ba3 {[%clk 0:01:42.1]} 18... b6 {[%clk 0:02:37.2]} 19. Be4 {[%clk
0:01:25.3]} 19... Rad8 {[%clk 0:02:37.2]} 20. Bxd5 {[%clk 0:01:21.6]} 20... Rxd5
{[%clk 0:02:26.5]} 21. dxc5 {[%clk 0:01:22.9]} 21... bxc5 {[%clk 0:02:11.5]} 22.
Rxd5 {[%clk 0:01:22.9]} 22... exd5 {[%clk 0:02:13.4]} 23. Qxd5 {[%clk
0:01:23.9]} 23... Bxc3 {[%clk 0:02:14]} 24. Bxc5 {[%clk 0:01:23.9]} 24... Rd8
{[%clk 0:01:54.5]} 25. Bxe7 {[%clk 0:01:10.4]} 25... Rxd5 {[%clk 0:01:54.9]} 26.
Rc1 {[%clk 0:01:11.7]} 26... Be5 {[%clk 0:01:43.8]} 27. Rc8+ {[%clk 0:00:50.7]}
27... Kg7 {[%clk 0:01:44.2]} 28. g3 {[%clk 0:00:45.5]} 28... Rd3 {[%clk
0:01:40.3]} 29. Bf8+ {[%clk 0:00:38]} 29... Kf6 {[%clk 0:01:40.7]} 30. Rc6+
{[%clk 0:00:39.1]} 30... Kf5 {[%clk 0:01:39.7]} 31. g4+ {[%clk 0:00:32]} 31...
Ke4 {[%clk 0:01:39.1]} 32. Kg2 {[%clk 0:00:28.2]} 32... Rxb3 {[%clk 0:01:39.2]}
33. Rc4+ {[%clk 0:00:21]} 33... Kd3 {[%clk 0:01:40]} 34. Rc5 {[%clk 0:00:21.8]}
34... Bd4 {[%clk 0:01:37.5]} 35. Rxa5 {[%clk 0:00:22.3]} 35... Rb2 {[%clk
0:01:38.4]} 36. Rd5 {[%clk 0:00:19.5]} 36... Rxf2+ {[%clk 0:01:22.7]} 37. Kg3
{[%clk 0:00:20.9]} 37... Ra2 {[%clk 0:01:16.6]} 38. a5 {[%clk 0:00:21.2]} 38...
Ke4 {[%clk 0:01:16.7]} 39. Rd7 {[%clk 0:00:22.4]} 39... g5 {[%clk 0:01:05]} 40.
h4 {[%clk 0:00:05.7]} 40... Be5+ {[%clk 0:01:05.1]} 41. Kh3 {[%clk 0:00:06.7]}
41... Rh2# {[%clk 0:01:06.4]} 0-1

[Event "*** Titled Tuesday 3|2 Blitz"]
[Site "Chess.com"]
[Date "2015.10.06"]
[Round "1"]
[White "jlandaw"]
[Black "chess960now"]
[Result "1-0"]
[WhiteElo "2361"]
[BlackElo "1969"]
[TimeControl "180+2"]
[EndTime "17:08:13 PDT"]
[Termination "jlandaw won by checkmate"]

1. e4 {[%clk 0:03:00]} 1... c5 {[%clk 0:02:59.6]} 2. Nc3 {[%clk 0:03:00.9]} 2...
Nc6 {[%clk 0:02:56.7]} 3. g3 {[%clk 0:03:02.2]} 3... g6 {[%clk 0:02:57.4]} 4.
Bg2 {[%clk 0:03:03.6]} 4... Bg7 {[%clk 0:02:58.8]} 5. d3 {[%clk 0:03:05]} 5...
d6 {[%clk 0:02:59.5]} 6. f4 {[%clk 0:03:05]} 6... e6 {[%clk 0:02:51.1]} 7. Nf3
{[%clk 0:03:04.5]} 7... Nge7 {[%clk 0:02:52.2]} 8. O-O {[%clk 0:03:05.2]} 8...
O-O {[%clk 0:02:53]} 9. Be3 {[%clk 0:03:06.4]} 9... Rb8 {[%clk 0:02:51.2]} 10.
a3 {[%clk 0:03:01.2]} 10... b5 {[%clk 0:02:51.8]} 11. Rb1 {[%clk 0:03:02.7]}
11... b4 {[%clk 0:02:52.5]} 12. axb4 {[%clk 0:03:03.6]} 12... Nxb4 {[%clk
0:02:48]} 13. e5 {[%clk 0:03:01.6]} 13... Ned5 {[%clk 0:02:12.7]} 14. Bf2 {[%clk
0:02:49.9]} 14... Nxc3 {[%clk 0:02:12.4]} 15. bxc3 {[%clk 0:02:51.8]} 15... Na6
{[%clk 0:02:05]} 16. Rxb8 {[%clk 0:02:37.6]} 16... Nxb8 {[%clk 0:02:05.3]} 17.
Re1 {[%clk 0:02:16.9]} 17... Na6 {[%clk 0:01:50.1]} 18. Qa1 {[%clk 0:02:10.4]}
18... d5 {[%clk 0:01:49]} 19. Qa3 {[%clk 0:02:02.8]} 19... Qb6 {[%clk
0:01:43.7]} 20. Ra1 {[%clk 0:01:57.5]} 20... Bb7 {[%clk 0:01:24]} 21. Nd2 {[%clk
0:01:56.7]} 21... Rb8 {[%clk 0:01:22.5]} 22. Nb3 {[%clk 0:01:54.3]} 22... Qc7
{[%clk 0:01:15.5]} 23. Nxc5 {[%clk 0:01:49.3]} 23... Nxc5 {[%clk 0:01:06.1]} 24.
Bxc5 {[%clk 0:01:49.9]} 24... a6 {[%clk 0:00:55]} 25. Bd6 {[%clk 0:01:14.8]}
25... Qb6+ {[%clk 0:00:55.7]} 26. Kh1 {[%clk 0:01:16.4]} 26... Rc8 {[%clk
0:00:54.3]} 27. d4 {[%clk 0:01:13]} 27... Qc6 {[%clk 0:00:53.1]} 28. Rb1 {[%clk
0:01:10.3]} 28... Ba8 {[%clk 0:00:41.7]} 29. Bc5 {[%clk 0:01:11.4]} 29... Bf8
{[%clk 0:00:38.1]} 30. Bxf8 {[%clk 0:01:12.5]} 30... Rxf8 {[%clk 0:00:38.5]} 31.
Bf1 {[%clk 0:01:14.1]} 31... Rc8 {[%clk 0:00:32.9]} 32. Rb3 {[%clk 0:01:14.5]}
32... Bb7 {[%clk 0:00:23.5]} 33. Qa5 {[%clk 0:01:15.7]} 33... Ra8 {[%clk
0:00:19.7]} 34. Rb6 {[%clk 0:01:14.5]} 34... Qc8 {[%clk 0:00:18.3]} 35. Bd3
{[%clk 0:01:11]} 35... h5 {[%clk 0:00:15.3]} 36. Kg2 {[%clk 0:01:09.6]} 36... h4
{[%clk 0:00:10.6]} 37. g4 {[%clk 0:01:08.9]} 37... Bc6 {[%clk 0:00:09.2]} 38.
Rxa6 {[%clk 0:01:05.1]} 38... Rxa6 {[%clk 0:00:04.1]} 39. Qxa6 {[%clk 0:01:07]}
39... Qc7 {[%clk 0:00:05.3]} 40. f5 {[%clk 0:01:01.2]} 40... gxf5 {[%clk
0:00:06.1]} 41. gxf5 {[%clk 0:01:02.5]} 41... Bd7 {[%clk 0:00:06.1]} 42. Qa8+
{[%clk 0:00:59.3]} 42... Kg7 {[%clk 0:00:06.3]} 43. f6+ {[%clk 0:01:00.5]} 43...
Kh6 {[%clk 0:00:05.7]} 44. Qh8+ {[%clk 0:00:55.3]} 44... Kg5 {[%clk 0:00:06.9]}
45. Qg7+ {[%clk 0:00:55.6]} 45... Kf4 {[%clk 0:00:06.7]} 46. Qh6+ {[%clk
0:00:56.7]} 46... Kg4 {[%clk 0:00:05.6]} 47. h3# {[%clk 0:00:57.9]} 1-0